bitfinex/quotes_ETHUSD_20220215
["timestamp","ask_amount","ask_price","bid_price","bid_amount"]
[1644900869146,0.13915878,3016.4,3016.3,1.5653467]
[1644900869343,0.13915878,3016.4,3016.3,2.8653467]
[1644900869545,0.13915878,3016.4,3016.3,1.5653467]
[1644900870191,0.13915878,3016.4,3016.3,1.0903467]
[1644900873594,0.13915878,3016.4,3016.3,0.0735467]
[1644900877143,0.13915878,3016.4,3016.2,0.00956977]
[1644900877342,0.13915878,3016.4,3016.3,0.0735467]
[1644900877788,0.13915878,3016.4,3016.2,0.00956977]
[1644900877988,0.13915878,3016.4,3016.3,0.0735467]
[1644900878390,0.13915878,3016.4,3016.2,0.00956668]
[1644900878596,0.13915878,3016.4,3016.3,0.0735467]
[1644900878792,0.13793104,3016.4,3016.2,0.00956668]
[1644900878994,0.13793104,3016.4,3016.3,0.0735467]
[1644900879191,0.13793104,3016.4,3016.0,0.0735467]
[1644900879592,0.13793104,3016.4,3016.1,0.00956681]
[1644900879792,0.13793104,3016.4,3016.2,0.0735467]
[1644900879992,0.13793104,3016.4,3016.3,0.0735467]
[1644900880392,0.13793104,3016.4,3016.0,0.0735467]
[1644900880792,0.13793104,3016.4,3016.2,0.00956668]
[1644900880992,0.13793104,3016.4,3016.3,0.0735467]
[1644900881448,0.13793104,3016.4,3016.2,0.00956668]
[1644900881649,0.13793104,3016.4,3016.3,0.0735467]
[1644900882048,0.13793104,3016.4,3016.2,0.00956689]
[1644900882349,0.13793104,3016.4,3016.3,0.0735467]
[1644900882548,0.13793104,3016.4,3016.2,0.00956689]
[1644900882748,0.13793104,3016.4,3016.3,0.0235467]
[1644900882948,0.13793104,3016.4,3015.9,1.54991345]
[1644900883153,0.13793104,3016.4,3016.2,0.00956689]
[1644900883950,0.13793104,3016.4,3015.9,2.17812442]
[1644900884351,0.13793104,3016.4,3016.1,0.00956701]
[1644900885187,0.13793104,3016.4,3015.9,2.17812442]
[1644900885386,0.13793104,3016.4,3016.1,0.00956712]
[1644900886390,0.13793104,3016.4,3015.9,2.17812442]
[1644900886586,0.13793104,3016.4,3016.1,0.00956712]
[1644900887689,0.13793104,3016.4,3015.9,1.54991345]
[1644900887889,0.13793104,3016.4,3016.1,0.00956712]
[1644900888739,0.13793104,3016.4,3016.0,1.45707097]
[1644900889141,0.13793104,3016.4,3016.1,0.01018682]
[1644900889941,0.13793104,3016.4,3015.9,2.17812442]
[1644900890343,0.13793104,3016.4,3016.1,0.0097911]
[1644900891242,0.13793104,3016.4,3015.9,1.54991345]
[1644900891446,0.13793104,3016.4,3016.1,0.0097911]
[1644900891842,0.13793104,3016.4,3016.1,0.8386311]
[1644900892487,0.13793104,3016.4,3016.1,0.82884]
[1644900892688,0.13793104,3016.4,3016.1,0.8386682]
[1644900893494,0.13793104,3016.4,3016.1,0.82884]
[1644900893892,0.13793104,3016.4,3016.1,0.8386682]
[1644900894097,0.13793104,3016.4,3016.1,1.46687917]
[1644900894393,0.13793104,3016.4,3016.3,0.82869]
[1644900894992,0.13793104,3016.4,3016.3,1.45690097]
[1644900895592,0.13793104,3016.4,3016.3,0.82869]
[1644900895793,0.13793104,3016.4,3016.2,0.83868526]
[1644900895992,0.13793104,3016.4,3016.2,0.8288]
[1644900896236,0.13793104,3016.4,3016.2,0.63809623]
[1644900896438,0.13793104,3016.4,3016.2,0.00988526]
[1644900897041,0.13793104,3016.4,3016.2,0.63809623]
[1644900897239,0.13793104,3016.4,3016.2,0.62821097]
[1644900897838,0.13793104,3016.4,3016.2,1.45701097]
[1644900898244,0.13793104,3016.4,3015.9,1.27247513]
[1644900898245,4.7,3016.3,3015.9,1.27247513]
[1644900898643,4.7,3016.3,3016.1,0.00987663]
[1644900898644,0.3,3016.2,3016.1,0.00987663]
[1644900898841,1.0,3016.2,3016.1,0.00987663]
[1644900899341,1.82918,3016.2,3016.1,0.00987663]
[1644900899542,1.82918,3016.2,3015.9,1.27247513]
[1644900899740,1.12906,3016.1,3015.9,1.27247513]
[1644900899994,1.09979726,3016.0,3015.9,1.27985183]
[1644900900595,4.76504493,3016.0,3015.9,1.27985183]
[1644900900795,4.76504493,3016.0,3015.9,1.27247513]
[1644900900998,5.76504493,3016.0,3015.9,1.27247513]
[1644900902896,7.05754335,3016.0,3015.9,1.37206717]
[1644900903498,2.39229568,3016.0,3015.9,1.37206717]
[1644900903742,1.09979726,3016.0,3015.9,1.37206717]
[1644900905041,3.3,3016.0,3015.9,1.37206717]
[1644900906640,5.5918856,3016.0,3015.9,1.37206717]
[1644900906842,4.3,3016.0,3015.9,1.37206717]
[1644900907048,3.69092564,3016.0,3015.9,1.37206717]
[1644900907891,4.82510377,3016.0,3015.9,1.37206717]
[1644900909295,3.82510377,3016.0,3015.9,1.37206717]
[1644900910797,2.69092564,3016.0,3015.9,1.37206717]
[1644900911940,3.87045711,3016.0,3015.9,1.37206717]
[1644900913944,5.16321642,3016.0,3015.9,1.37206717]
[1644900914143,8.52717786,3016.0,3015.9,1.37206717]
[1644900914345,5.05,3015.9,3015.8,0.00956811]
[1644900914549,5.05,3015.9,3015.3,0.00543046]
[1644900914550,6.34275931,3015.9,3015.3,0.00543046]
[1644900914742,1.475,3015.8,3015.2,0.03828009]
[1644900915207,1.475,3015.8,3014.6,0.1658]
[1644900915208,8.8,3015.7,3014.6,0.1658]
[1644900915410,6.475,3015.6,3014.2,3.87567562]
[1644900915606,0.82945,3015.4,3014.2,3.87567562]
[1644900915807,3.5,3015.3,3014.2,0.84127562]
[1644900916007,3.5,3015.3,3013.9,0.84127562]
[1644900916207,0.88108499,3014.4,3013.9,0.84127562]
[1644900916708,0.82952,3014.3,3013.8,0.84127562]
[1644900916907,0.829558,3014.1,3013.8,0.84127562]
[1644900918610,0.82955,3014.0,3013.8,0.84127562]
[1644900919038,0.8294574,3014.5,3013.9,0.84127562]
[1644900919239,2.93911997,3014.9,3013.8,0.01023005]
[1644900919240,4.53703683,3014.9,3014.0,0.84127562]
[1644900919438,1.28019997,3014.9,3013.9,0.84127562]
[1644900919639,1.28019997,3014.9,3014.1,0.84127562]
[1644900920146,1.16647291,3014.8,3014.3,0.01022045]
[1644900920541,0.13819997,3014.9,3014.3,0.01022045]
[1644900920742,3.31722,3015.3,3014.3,0.01022045]
[1644900920743,0.00733475,3015.4,3014.4,0.84127562]
[1644900920944,0.00733475,3015.4,3014.5,5.47017562]
[1644900921140,0.00733475,3015.4,3014.6,0.475]
[1644900921343,5.8648,3016.1,3014.7,1.95806]
[1644900921541,5.8648,3016.1,3014.7,0.01021939]
[1644900921542,0.00733573,3015.4,3014.7,0.01021939]
[1644900922341,1.65853,3015.4,3014.5,1.1289]
[1644900922594,1.65853,3015.4,3014.1,0.25]
[1644900922595,0.475,3015.3,3014.1,0.25]
[1644900922798,5.0,3015.1,3014.9,0.01021899]
[1644900922996,0.89248013,3015.0,3014.9,0.01021899]
[1644900923192,0.475,3015.1,3014.9,0.01021899]
[1644900923398,1.00733609,3015.4,3014.9,0.01021899]
[1644900923399,0.00733609,3015.4,3014.9,0.83937899]
[1644900923597,1.0,3015.8,3014.5,0.475]
[1644900923794,1.8293124,3015.3,3014.5,0.475]
[1644900923992,0.00733597,3015.4,3014.8,0.01022725]
[1644900924192,1.0,3015.3,3014.8,0.01022725]
[1644900924394,0.00733597,3015.4,3014.9,0.82917]
[1644900924593,0.00733597,3015.4,3015.0,3.5]
[1644900924792,0.00733597,3015.4,3015.0,1.2978]
[1644900924991,1.2474,3016.2,3015.0,1.2978]
[1644900925194,0.00733634,3015.4,3015.1,0.62889394]
[1644900925399,0.00733634,3015.4,3015.3,0.82881]
[1644900925594,0.00733634,3015.4,3015.3,1.67694929]
[1644900925992,0.00733634,3015.4,3015.3,2.15194929]
[1644900926240,0.00733646,3015.5,3015.3,2.15194929]
[1644900926441,0.00733646,3015.5,3015.3,1.30381]
[1644900926645,0.00733646,3015.5,3015.3,0.475]
[1644900927043,0.00630446,3015.5,3015.4,4.10871834]
[1644900927241,2.03122752,3016.4,3015.4,4.58371834]
[1644900927441,1.03122752,3016.4,3015.4,4.58371834]
[1644900927642,0.82902,3016.3,3015.4,1.30405]
[1644900927843,1.82902,3016.3,3015.4,1.30405]
[1644900928243,2.6580591,3016.3,3015.4,1.30405]
[1644900928444,3.43793104,3016.4,3015.5,5.36609358]
[1644900928644,3.43793104,3016.4,3015.7,2.48616]
[1644900928645,0.00220094,3016.0,3015.7,2.48616]
[1644900928845,0.00220094,3016.0,3015.8,1.30371]
[1644900929647,3.43793104,3016.4,3015.8,1.30371]
[1644900929848,3.43793104,3016.4,3015.8,0.475]
[1644900929849,0.00220094,3016.1,3015.8,0.475]
[1644900930900,3.43793104,3016.4,3015.8,2.13267]
[1644900931101,0.00733388,3016.1,3015.8,2.13267]
[1644900931900,0.00733388,3016.1,3015.9,4.10403025]
[1644900932103,3.43793104,3016.4,3016.0,0.82884]
[1644900932304,0.00733388,3016.1,3016.0,0.82884]
[1644900933206,3.43793104,3016.4,3016.0,0.82884]
[1644900933403,0.00595095,3016.2,3016.0,0.82884]
[1644900934042,0.00595095,3016.2,3016.1,2.13229]
[1644900934246,0.00595095,3016.2,3016.1,3.10849]
[1644900934442,3.43793104,3016.4,3016.1,4.21849553]
[1644900934643,0.00595095,3016.3,3016.2,0.11000553]
[1644900934844,0.00595095,3016.3,3016.2,2.43098968]
[1644900935242,0.00595095,3016.3,3016.2,3.55955968]
[1644900935450,0.00595095,3016.3,3016.2,3.25955968]
[1644900935641,3.43793104,3016.4,3016.2,3.25955968]
[1644900935845,3.43793104,3016.4,3016.3,0.11000553]
[1644900935846,3.44388199,3016.4,3016.3,0.11000553]
[1644900936044,3.44388199,3016.4,3016.3,4.10263849]
[1644900936451,3.44388199,3016.4,3016.3,4.08500553]
[1644900936643,0.02766314,3017.5,3016.6,0.82854]
[1644900936845,1.26199458,3017.4,3016.7,0.58500553]
[1644900937043,0.00386824,3017.3,3016.8,0.11000553]
[1644900937244,0.00386824,3017.3,3016.9,0.475]
[1644900937497,0.00386824,3017.5,3016.9,0.475]
[1644900937697,1.26119138,3017.4,3016.9,0.475]
[1644900937900,0.00386824,3017.3,3017.0,0.1267011]
[1644900938094,0.00386824,3017.9,3016.9,0.475]
[1644900938295,0.00186481,3017.3,3016.9,0.475]
[1644900938505,0.00186481,3017.3,3017.0,3.62668478]
[1644900938699,0.00186481,3017.3,3017.1,0.60168478]
[1644900938896,0.00186481,3017.3,3017.2,4.69579157]
[1644900939095,0.00186481,3017.3,3017.2,5.17079157]
[1644900939300,1.25228818,3017.7,3017.6,1.10691022]
[1644900939496,0.00386824,3017.7,3017.6,1.58191022]
[1644900939795,0.02480096,3017.9,3017.6,1.58191022]
[1644900939996,0.02480096,3017.9,3017.6,2.41025022]
[1644900940194,0.02480096,3017.9,3017.5,4.8591105]
[1644900940398,0.00386824,3018.2,3017.6,0.475]
[1644900940595,1.25100752,3018.1,3017.8,0.96188188]
[1644900940797,0.00620117,3017.9,3017.8,0.96188188]
[1644900941000,1.25720869,3017.9,3017.8,0.96188188]
[1644900941246,1.25720869,3017.9,3017.6,0.475]
[1644900941448,0.01006941,3017.9,3017.6,0.475]
[1644900941649,0.00386824,3018.2,3017.8,0.82835]
[1644900941848,0.00615652,3017.9,3017.6,0.475]
[1644900942048,0.00615652,3017.9,3017.5,1.59530682]
[1644900942448,0.00615652,3017.9,3017.5,2.62026311]
[1644900942949,0.00386824,3018.2,3017.5,2.62026311]
[1644900943148,0.00615652,3017.9,3017.5,2.62026311]
[1644900943553,0.00615652,3017.9,3017.5,1.59530682]
[1644900943750,0.00615652,3017.9,3017.2,6.54916]
[1644900943751,1.24959258,3017.8,3017.2,4.4173]
[1644900943951,0.00386824,3017.7,3016.8,0.4156]
[1644900944149,1.72459258,3017.6,3016.8,0.1656]
[1644900944349,1.25346082,3017.5,3016.8,0.1656]
[1644900944549,2.07832258,3017.4,3016.8,0.1656]
[1644900944750,1.25346082,3017.3,3016.8,0.1656]
[1644900945004,0.00386824,3017.3,3016.8,0.1656]
[1644900945201,0.00386824,3017.3,3016.7,0.96966185]
[1644900945605,0.00614896,3017.2,3016.7,0.96966185]
[1644900945802,1.24901188,3017.1,3016.2,4.1064]
[1644900946005,3.50386824,3017.0,3016.3,0.13586599]
[1644900946206,3.50386824,3017.0,3015.8,1.2135]
[1644900946401,3.50386824,3017.0,3015.9,0.13587347]
[1644900946603,3.50386824,3017.0,3016.0,0.13587347]
[1644900946802,0.00614896,3016.6,3016.0,0.96533206]
[1644900947002,0.00614896,3016.6,3016.1,0.96468347]
[1644900947204,0.00494987,3016.6,3016.2,0.13587347]
[1644900947805,0.82893,3016.6,3016.0,0.96533206]
[1644900948004,0.82893,3016.6,3016.1,0.13585199]
[1644900948005,1.6578829,3016.6,3016.1,0.13585199]
[1644900948203,3.25257138,3016.7,3016.1,0.13585199]
[1644900948404,3.38260486,3016.9,3016.1,0.13585199]
[1644900948603,0.00386824,3017.0,3016.1,0.13585199]
[1644900948849,1.0,3017.2,3016.1,0.13585199]
[1644900949046,3.2399108,3017.1,3016.1,0.13585199]
[1644900949246,0.00191067,3016.7,3016.1,0.13585199]
[1644900950046,0.00386824,3016.9,3016.1,0.13585199]
[1644900950246,4.61726804,3017.3,3016.1,0.96467199]
[1644900950247,4.62113628,3017.3,3016.1,0.96467199]
[1644900950447,3.3019106,3016.7,3016.2,0.13585199]
[1644900950845,3.3019106,3016.7,3016.3,0.13585199]
[1644900951045,3.3019106,3016.7,3016.4,0.13585199]
[1644900951247,3.3,3016.7,3016.4,0.13585199]
[1644900951452,3.3,3016.7,3016.0,0.96533206]
[1644900951646,3.3,3016.7,3016.1,0.13577721]
[1644900951647,3.30636592,3016.7,3016.1,0.13577721]
[1644900952499,3.3,3016.7,3016.1,0.13577721]
[1644900952701,4.13542345,3016.7,3016.1,0.13577721]
[1644900953799,7.39798145,3016.7,3016.1,0.13577721]
[1644900954103,7.39798145,3016.7,3016.1,0.96458721]
[1644900954104,3.30657345,3016.7,3016.1,0.96458721]
[1644900954298,3.30657345,3016.7,3016.2,0.13577721]
[1644900954699,3.30657345,3016.7,3016.3,0.13577721]
[1644900954899,0.02547537,3016.6,3016.1,0.13577721]
[1644900955299,0.02547537,3016.6,3016.1,0.96459721]
[1644900955498,0.02547537,3016.6,3016.2,0.13577721]
[1644900955698,0.02547537,3016.6,3016.3,0.13577721]
[1644900955898,0.02547537,3016.6,3016.4,0.13577721]
[1644900956100,0.02547537,3016.6,3016.1,1.65748]
[1644900956355,0.02547537,3016.6,3016.2,0.96454228]
[1644900956555,0.02547537,3016.6,3016.3,0.13578228]
[1644900956957,0.02547537,3016.6,3016.4,0.13578228]
[1644900957154,0.02547537,3016.6,3016.0,0.96533206]
[1644900957355,0.02547537,3016.6,3016.1,0.1357885]
[1644900957556,0.02547537,3016.6,3016.2,0.8288]
[1644900957855,0.02547537,3016.6,3016.3,0.1357885]
[1644900958255,0.02547537,3016.6,3016.4,0.1357885]
[1644900958455,0.02547537,3016.6,3016.0,0.96533206]
[1644900958658,0.02547537,3016.6,3016.1,0.1357816]
[1644900958854,0.02547537,3016.6,3016.4,0.82875]
[1644900959455,0.02547537,3016.6,3016.0,2.62287206]
[1644900959663,0.02547537,3016.6,3016.1,0.13580345]
[1644900959856,3.3,3016.7,3016.1,0.13580345]
[1644900960105,3.30616176,3016.7,3016.2,0.82879]
[1644900960301,3.30616176,3016.7,3016.3,0.13580345]
[1644900960902,3.3,3016.7,3016.3,0.13580345]
[1644900961306,3.30616217,3016.7,3016.3,0.13580345]
[1644900962010,3.30616217,3016.7,3016.4,0.82872]
[1644900962204,3.30616217,3016.7,3016.5,0.13580345]
[1644900962205,3.3,3016.7,3016.5,0.13580345]
[1644900962406,3.30616217,3016.7,3016.5,0.13580345]
[1644900962606,3.30616217,3016.7,3016.6,0.13580345]
[1644900962808,3.30616217,3016.7,3016.3,0.13580345]
[1644900963410,3.3,3016.7,3016.3,0.13580345]
[1644900963607,3.30614455,3016.7,3016.5,0.82872]
[1644900963846,3.30614455,3016.7,3016.6,0.13580345]
[1644900964651,3.3,3016.7,3016.6,0.13580345]
[1644900967254,2.65744256,3016.7,3016.6,0.13580345]
[1644900973447,1.89150212,3016.7,3016.6,0.13580345]
[1644900973650,1.89150212,3016.7,3016.6,1.23969739]
[1644900973851,1.8119564,3016.7,3016.6,2.24128342]
[1644900974047,0.02458285,3017.5,3016.8,5.05]
[1644900974248,1.27070531,3017.4,3016.9,0.61080345]
[1644900974448,0.00386824,3017.3,3017.0,0.13580345]
[1644900974749,0.02458326,3017.5,3017.1,0.61080345]
[1644900975003,1.26086975,3017.4,3016.5,2.0108]
[1644900975197,0.00386824,3017.3,3016.6,0.13368994]
[1644900975396,2.08967975,3017.2,3016.6,0.13368994]
[1644900975598,1.26473799,3017.1,3016.6,0.13368994]
[1644900975799,1.26086975,3017.0,3016.9,1.17057377]
[1644900976000,1.26086975,3017.0,3016.9,1.30426371]
[1644900976001,0.00386824,3017.0,3016.9,1.30426371]
[1644900976202,1.26086975,3017.0,3016.9,2.13292371]
[1644900976400,1.26473799,3017.0,3016.9,2.13292371]
[1644900976599,0.00386824,3017.0,3016.9,1.99923377]
[1644900976800,1.26134081,3017.0,3016.9,2.13294406]
[1644900976999,0.00386824,3017.0,3016.9,2.13294406]
[1644900977200,1.26134081,3017.0,3016.9,2.13294406]
[1644900977502,0.00386824,3017.1,3016.9,2.13294406]
[1644900977699,1.26134081,3017.0,3016.9,1.99923377]
[1644900977900,1.26520905,3017.0,3016.9,2.13296652]
[1644900978300,0.00386824,3017.0,3016.9,2.13296652]
[1644900978500,0.00219642,3017.2,3016.9,2.13296652]
[1644900978756,0.00219642,3017.2,3017.0,0.13373275]
[1644900978954,0.00386824,3017.4,3017.0,0.13373275]
[1644900979155,1.26113988,3017.3,3017.0,0.13373275]
[1644900979356,1.26844052,3017.2,3017.0,0.13373275]
[1644900979653,0.00730064,3017.2,3017.0,0.13373275]
[1644900980060,1.25082606,3017.1,3017.0,0.96237275]
[1644900980254,1.25082606,3017.1,3017.0,0.13373275]
[1644900980453,0.00386824,3017.3,3017.0,0.13373275]
[1644900980454,1.25082606,3017.2,3017.0,0.13373275]
[1644900980655,1.2546943,3017.2,3017.1,0.13373275]
[1644900981053,1.2546943,3017.2,3016.9,0.82869]
[1644900981255,1.25082606,3017.1,3017.0,0.13373275]
[1644900981453,1.25082606,3017.1,3016.8,0.13373275]
[1644900981653,2.26121619,3017.7,3016.9,0.93459025]
[1644900981654,0.00386824,3017.0,3016.9,0.93459025]
[1644900981954,0.00730064,3017.2,3016.9,1.896943]
[1644900982254,0.00730064,3017.2,3017.0,0.13373275]
[1644900982711,1.25018205,3017.1,3017.0,0.13373275]
[1644900983108,1.25018205,3017.2,3017.0,0.13373275]
[1644900983310,0.00386824,3017.2,3017.0,2.61929355]
[1644900983509,0.00730064,3017.3,3017.1,0.13373275]
[1644900983911,0.00386824,3017.9,3017.2,0.13373275]
[1644900984108,0.00386824,3017.9,3017.3,0.13373275]
[1644900984109,1.25028052,3017.8,3017.3,0.13373275]
[1644900984308,0.00730064,3017.4,3017.0,1.65707]
[1644900984512,1.25028052,3017.3,3017.1,0.14297627]
[1644900984709,1.25414876,3017.3,3017.1,0.14297627]
[1644900984909,1.25028052,3017.2,3017.1,0.14297627]
[1644900985317,0.00386824,3017.3,3017.1,0.14297627]
[1644900985510,4.55028052,3017.2,3016.9,2.59174025]
[1644900985711,3.30386824,3017.2,3017.0,0.1429707]
[1644900985911,3.25386824,3017.2,3017.0,0.1429707]
[1644900986548,1.25069775,3017.1,3017.0,0.9716107]
[1644900987348,3.25386824,3017.2,3017.0,0.9716107]
[1644900987651,3.25386824,3017.2,3017.1,0.1429707]
[1644900987652,2.59713911,3017.2,3017.1,0.1429707]
[1644900987853,3.8602984,3017.2,3017.1,0.1429707]
[1644900988648,3.85299776,3017.2,3017.1,0.1429707]
[1644900992296,3.85299776,3017.2,3017.1,0.9715907]
[1644900993102,3.85299776,3017.2,3017.1,0.1429707]
[1644900993599,3.85299776,3017.2,3017.1,0.9716007]
[1644900993846,2.58983847,3017.2,3017.1,0.9716007]
[1644900994448,2.58983847,3017.2,3017.1,1.4466007]
[1644900998802,2.58983847,3017.2,3017.1,2.4466007]
[1644900998999,2.58983847,3017.2,3017.1,1.7466007]
[1644900999198,2.58983847,3017.2,3017.1,1.4466007]
[1644900999798,2.58983847,3017.2,3017.1,2.7466007]
[1644900999998,2.58983847,3017.2,3017.1,3.37705783]
[1644901000199,2.58983847,3017.2,3017.1,2.07705783]
[1644901000399,2.58983847,3017.2,3017.1,1.4466007]
[1644901001247,2.58983847,3017.2,3017.1,2.07705783]
[1644901001450,2.58983847,3017.2,3017.1,1.46064179]
[1644901006101,2.58983847,3017.2,3017.1,0.98564179]
[1644901006301,3.82790288,3017.2,3017.1,0.98564179]
[1644901006804,3.82790288,3017.2,3017.1,0.15701179]
[1644901007000,3.72790288,3017.2,3017.1,0.15701179]
[1644901007201,3.72790288,3017.2,3016.7,0.82854]
[1644901007401,1.23806441,3017.1,3016.8,0.15701179]
[1644901007601,2.48983847,3017.2,3017.1,0.27754818]
[1644901007801,2.48983847,3017.2,3017.1,1.26311997]
[1644901007802,3.72804072,3017.2,3017.1,1.26311997]
[1644901008861,2.48983847,3017.2,3017.1,1.56311997]
[1644901009057,2.48983847,3017.2,3017.1,3.1935771]
[1644901009257,2.48983847,3017.2,3017.1,2.26311997]
[1644901009457,2.48983847,3017.2,3017.1,1.26311997]
[1644901009656,2.48983847,3017.2,3017.1,2.26311997]
[1644901009957,2.48983847,3017.2,3017.1,1.26311997]
[1644901010161,2.48983847,3017.2,3017.1,0.43455997]
[1644901010361,3.72848999,3017.2,3017.1,0.43455997]
[1644901012609,3.72848999,3017.2,3016.4,0.63045713]
[1644901012610,4.5,3017.1,3016.4,0.63045713]
[1644901012807,4.5,3017.1,3016.2,1.4979]
[1644901012808,2.48983847,3017.2,3016.2,0.63045713]
[1644901013207,2.48983847,3017.2,3016.3,0.63045713]
[1644901013208,2.78983847,3017.2,3016.3,0.63045713]
[1644901013408,2.78983847,3017.2,3016.1,1.9656]
[1644901013409,1.0,3017.1,3016.2,0.63045713]
[1644901013613,1.0,3017.1,3016.3,1.09545744]
[1644901013614,0.8288978,3016.8,3016.3,1.09545744]
[1644901013810,1.6577878,3016.8,3016.3,1.09545744]
[1644901014011,0.82888,3016.7,3016.3,1.09545744]
[1644901014711,0.82888,3016.7,3016.1,0.63045713]
[1644901014910,1.65786,3016.5,3016.1,0.63045713]
[1644901015111,0.82892,3016.5,3016.1,0.63045713]
[1644901015311,0.82892,3016.5,3016.2,0.63045713]
[1644901015913,0.82881,3016.6,3016.2,1.47172661]
[1644901016252,3.56144142,3017.0,3016.2,2.30050661]
[1644901016450,1.0,3017.1,3016.2,2.30050661]
[1644901016649,0.0061336,3017.0,3016.3,0.63045713]
[1644901017248,3.30794748,3017.0,3016.3,1.65729]
[1644901017449,3.44443535,3017.2,3016.2,0.84126948]
[1644901017650,3.39694528,3017.2,3016.2,1.47172661]
[1644901017850,0.0061341,3017.0,3016.3,0.63045713]
[1644901018450,0.0061341,3017.0,3016.4,0.82872]
[1644901018650,3.39694528,3017.2,3016.4,0.82872]
[1644901018952,0.0061341,3017.0,3016.4,0.82872]
[1644901019850,3.39694528,3017.2,3016.3,2.28775713]
[1644901020110,0.00613416,3017.0,3016.3,2.28775713]
[1644901020308,0.00613416,3017.0,3016.3,0.63045713]
[1644901020714,4.13485416,3017.0,3016.3,0.63045713]
[1644901021111,3.3,3017.0,3016.7,0.88721984]
[1644901021312,3.30613405,3017.0,3016.7,1.71583984]
[1644901022012,3.30613405,3017.0,3016.7,0.88721984]
[1644901022211,3.30613405,3017.0,3016.4,0.63045713]
[1644901022412,3.3,3017.0,3016.4,0.63045713]
[1644901022912,4.13485436,3017.0,3016.3,1.45921713]
[1644901023413,4.13485436,3017.0,3016.4,0.99647695]
[1644901023414,4.96360536,3017.0,3016.4,0.99647695]
[1644901023613,4.12872,3017.0,3016.4,1.62693408]
[1644901023853,4.13485402,3017.0,3016.4,0.99647695]
[1644901024057,4.13485402,3017.0,3016.4,1.82518695]
[1644901024656,3.3,3017.0,3016.4,1.82518695]
[1644901024853,3.3,3017.0,3016.4,2.45564408]
[1644901025053,3.30613412,3017.0,3016.4,2.45564408]
[1644901026055,3.3,3017.0,3016.4,2.45564408]
[1644901026254,3.30613412,3017.0,3016.4,2.45564408]
[1644901027055,3.30613412,3017.0,3016.5,0.63045713]
[1644901027255,3.3,3017.0,3016.6,0.82859]
[1644901027501,3.30613412,3017.0,3016.6,0.82859]
[1644901027704,2.44077825,3017.0,3016.6,0.82859]
[1644901028303,2.43464413,3017.0,3016.5,0.63045713]
[1644901028706,2.44077849,3017.0,3016.5,0.63045713]
[1644901029505,2.43464413,3017.0,3016.5,0.63045713]
[1644901030007,2.44077839,3017.0,3016.5,0.82869]
[1644901030807,2.43464413,3017.0,3016.5,0.82869]
[1644901031007,2.44077839,3017.0,3016.5,0.82869]
[1644901031955,2.43464413,3017.0,3016.3,1.65735]
[1644901032356,2.43464413,3017.0,3016.2,1.1581]
[1644901032357,3.42035183,3016.9,3016.2,1.1581]
[1644901032557,3.42035183,3016.9,3016.3,0.16733581]
[1644901032558,1.22732885,3016.8,3016.3,0.16733581]
[1644901032757,3.23880597,3016.7,3016.4,0.16733581]
[1644901032954,2.88508695,3016.6,3016.5,0.16733581]
[1644901033154,2.05620695,3016.6,3016.1,0.16733581]
[1644901033353,0.8288781,3016.6,3016.1,0.16733581]
[1644901034458,0.8289,3016.5,3016.1,0.16733581]
[1644901034655,0.8289,3016.5,3016.1,0.99617581]
[1644901034855,1.95640437,3016.8,3016.2,0.16733581]
[1644901035113,1.22684728,3016.7,3016.2,0.16733581]
[1644901035312,1.22684728,3016.7,3016.3,0.16733581]
[1644901035512,1.22684728,3016.7,3016.4,0.16733581]
[1644901035713,1.22684728,3016.7,3016.1,0.16733581]
[1644901035913,1.22684728,3016.7,3016.3,0.8288]
[1644901036114,1.22684728,3016.7,3016.4,0.16733581]
[1644901036316,4.42537219,3016.7,3016.4,0.16733581]
[1644901036514,1.22684728,3016.6,3016.4,0.16733581]
[1644901036716,3.18934108,3016.5,3016.4,0.16733581]
[1644901036917,3.18934108,3016.5,3015.9,1.65762]
[1644901036918,0.82881,3016.6,3016.0,0.16733581]
[1644901037121,1.1343,3016.9,3016.1,0.16733581]
[1644901037318,1.22665902,3016.8,3016.1,0.16733581]
[1644901037717,1.22665902,3016.8,3016.1,0.99603581]
[1644901038017,1.22665902,3016.8,3016.2,0.16733581]
[1644901038851,1.22665902,3016.8,3016.4,0.82876]
[1644901039054,1.22665902,3016.8,3016.5,0.16733581]
[1644901039351,1.22665902,3016.7,3016.5,0.16733581]
[1644901039552,2.44077811,3017.0,3016.6,0.16733581]
[1644901039757,1.22675544,3016.9,3016.7,0.16733581]
[1644901039952,1.22675544,3016.9,3016.8,0.99595581]
[1644901041559,2.43464413,3017.0,3016.8,0.99595581]
[1644901041761,2.43464413,3017.0,3016.9,0.16733581]
[1644901041762,2.44077852,3017.0,3016.9,0.16733581]
[1644901041958,2.44077852,3017.0,3016.9,0.99581581]
[1644901042806,2.43464413,3017.0,3016.9,0.99581581]
[1644901043605,3.63874333,3017.0,3016.9,0.99581581]
[1644901044008,3.63874333,3017.0,3016.9,0.16733581]
[1644901045010,3.63874333,3017.0,3016.7,0.16733581]
[1644901045206,3.63874333,3017.0,3016.8,0.16733581]
[1644901045207,2.43464413,3017.0,3016.8,0.16733581]
[1644901045410,2.43464413,3017.0,3016.9,0.16733581]
[1644901045609,2.43464413,3017.0,3016.3,1.82279]
[1644901045610,6.93059646,3017.0,3016.6,0.16733581]
[1644901045807,1.20307794,3016.9,3016.7,0.16733581]
[1644901046008,1.20307794,3016.9,3016.8,0.16733581]
[1644901046256,1.20307794,3016.9,3016.4,0.16733581]
[1644901046457,1.20307794,3016.9,3016.5,0.16733581]
[1644901046656,1.20307794,3016.9,3016.6,0.16733581]
[1644901046858,1.20307794,3016.9,3016.7,0.16733581]
[1644901047057,1.20307794,3016.9,3016.8,0.16733581]
[1644901047860,2.44077844,3017.0,3016.8,0.16733581]
[1644901048061,1.20353526,3016.9,3016.6,0.82868]
[1644901048259,2.44077844,3017.0,3016.7,0.19210521]
[1644901048459,2.44077844,3017.0,3016.8,0.19210521]
[1644901048659,1.20361543,3016.9,3016.5,1.6573]
[1644901048960,1.20362607,3016.8,3016.6,0.1921051]
[1644901049261,2.43464413,3017.0,3016.8,0.32982961]
[1644901049461,2.43464413,3017.0,3016.9,0.1921051]
[1644901049660,3.63815293,3017.0,3016.9,0.1921051]
[1644901051603,3.63815293,3017.0,3016.9,1.8491951]
[1644901052003,2.43372457,3017.0,3016.9,1.8491951]
[1644901052403,2.43372457,3017.0,3016.9,2.85560836]
[1644901053506,3.63843383,3017.0,3016.9,2.85560836]
[1644901053958,3.63843383,3017.0,3016.9,1.8491951]
[1644901055056,3.63843383,3017.0,3016.9,2.74249773]
[1644901055661,3.63843383,3017.0,3016.9,1.8491951]
[1644901056660,3.63843383,3017.0,3016.9,0.1921051]
[1644901059009,3.63843383,3017.0,3016.9,1.0207351]
[1644901059209,3.63843383,3017.0,3016.9,0.1921051]
[1644901060011,3.63843383,3017.0,3016.9,1.0207351]